[Event "2nd ESNAICC Women 2024"]
[Site "Andorra la Vella"]
[Date "2024.06.26"]
[Round "5.3"]
[White "Muratet Carmona, Julia"]
[Black "Nevska, Gerda"]
[Result "1/2-1/2"]
[ECO "B06"]
[WhiteElo "1834"]
[BlackElo "1872"]
[Annotator "NA RC"]
[PlyCount "88"]
[EventDate "2024.06.24"]
[EventType "tourn"]
[EventCountry "AND"]
[SourceTitle "playchess.com"]
[Source "ChessBase"]
[SourceQuality "1"]
[TimeControl "40/5400+30:1800+30"]

1. e4 {[%emt 0:00:03]} d6 {[%emt 0:01:14]} 2. d4 {[%emt 0:00:15]} g6 {[%emt 0:00:12]} 3. Nf3 {[%emt 0:01:14]} Bg7 {[%emt 0:01:54]} 4. Bc4 {[%emt 0:00:42]} c6 {[%emt 0:03:09]} 5. O-O {[%emt 0:02:38]} d5 {[%emt 0:05:59]} 6. exd5 {[%emt 0:02:45]} cxd5 {[%emt 0:00:07]} 7. Bb3 {[%emt 0:04:39] B06: Modern Defence.} Nf6 {[%emt 0:02:32]} 8. Nc3 {[%emt 0:00:54]} O-O {[%emt 0:05:27]} 9. Bg5 {[%emt 0:04:23]} e6 {[%emt 0:04:41]} 10. Qd2 {[%emt 0:02:29]} Nc6 {[%emt 0:01:40]} 11. Qf4 {[%emt 0:05:12]} Nh5 $1 {[%emt 0:00:31]} 12. Qe3 {[%emt 0:10:57]} f6 {[%emt 0:08:37]} 13. Bh6 {[%emt 0:08:02]} Bxh6 {[%emt 0:05:55]} 14. Qxh6 {[%emt 0:00:08]} Ng7 {[%emt 0:00:12]} 15. g4 {[%emt 0:06:22]} (15. Ne2 $142) 15... Ne7 {[%emt 0:05:39]} (15... Na5 $11) 16. Rae1 {[%emt 0:11:22]} Kh8 {[%emt 0:05:51]} (16... Rf7 $11) 17. Nh4 {[%emt 0:03:46]} g5 {[%emt 0:08:08]} 18. Ng2 {[%emt 0:03:47]} Ng8 {[%emt 0:11:34]} 19. Qh3 {[%emt 0:00:10]} f5 {[%emt 0:01:06]} 20. f3 {[%emt 0:06:32]} f4 {[%emt 0:01:12]} 21. Re5 {[%emt 0:03:34]} Rf6 {[%emt 0:02:33]} 22. Ne1 {[%emt 0:01:21]} Rg6 {[%emt 0:01:45]} 23. Na4 {[%emt 0:03:30]} b6 {[%emt 0:00:29]} 24. c3 {[%emt 0:00:47]} Ba6 {[%emt 0:00:51]} 25. Rf2 {[%emt 0:00:25]} Nh6 {[%emt 0:00:15]} 26. Bc2 {[%emt 0:00:52]} Qf6 {[%emt 0:01:35]} 27. Bxg6 {[%emt 0:01:05]} Qxg6 {[%emt 0:00:13]} 28. Nc2 {[%emt 0:01:47]} Rc8 {[%emt 0:03:11]} 29. Nb4 {[%emt 0:04:19]} Bb5 {[%emt 0:00:58]} 30. b3 {[%emt 0:01:28]} Qb1+ {[%emt 0:01:24]} 31. Kg2 {[%emt 0:03:38]} Nf7 {[%emt 0:00:29]} 32. Ree2 {[%emt 0:00:18]} Bxa4 {[%emt 0:03:52]} 33. bxa4 {[%emt 0:00:35]} Rxc3 {[%emt 0:00:05]} 34. Rb2 {[%emt 0:00:21]} Qa1 {[%emt 0:00:28]} 35. Rbc2 {[%emt 0:00:49]} Re3 {[%emt 0:00:36]} 36. Rc8+ {[%emt 0:00:43]} Ne8 {[%emt 0:00:25]} 37. Nc2 {[%emt 0:01:33]} Qd1 {[%emt 0:02:56]} 38. Rxe8+ {[%emt 0:03:41]} Kg7 {[%emt 0:00:05]} 39. Nxe3 {[%emt 0:00:43]} fxe3 {[%emt 0:00:05]} 40. Rf1 {[%emt 0:00:00]} Qd2+ {[%emt 0:00:00]} 41. Kg3 $18 {[%emt 0:11:46]} e2 {[%emt 0:03:47]} 42. Rb1 {[%emt 0:02:51]} e1=Q+ {[%emt 0:00:57]} 43. Rxe1 {[%emt 0:00:20]} Qxe1+ {[%emt 0:00:07]} 44. Kg2 {[%emt 0:00:27]} Qe2+ {[%emt 0:00:16]} 1/2-1/2

[Event "2nd ESNAICC Women 2024"]
[Site "Andorra la Vella"]
[Date "2024.06.26"]
[Round "5.4"]
[White "De la Riva Real, Ariadna"]
[Black "Markidou, Christianna"]
[Result "0-1"]
[ECO "C47"]
[WhiteElo "1774"]
[BlackElo "1676"]
[Annotator "NA RC"]
[PlyCount "86"]
[EventDate "2024.06.24"]
[EventType "tourn"]
[EventCountry "AND"]
[SourceTitle "playchess.com"]
[Source "ChessBase"]
[SourceQuality "1"]
[TimeControl "40/5400+30:1800+30"]

1. e4 {[%emt 0:00:03]} e5 {[%emt 0:00:10]} 2. Nf3 {[%emt 0:00:32]} Nc6 {[%emt 0:00:09]} 3. Nc3 {[%emt 0:00:10]} Nf6 {[%emt 0:00:18]} 4. d4 {[%emt 0:00:07]} exd4 {[%emt 0:00:28]} 5. Nxd4 {[%emt 0:00:12]} Bb4 {[%emt 0:01:12]} 6. Nxc6 {[%emt 0:00:10]} bxc6 {[%emt 0:00:15]} 7. Bd3 {[%emt 0:00:12]} d5 {[%emt 0:00:21]} 8. exd5 {[%emt 0:01:33]} cxd5 {[%emt 0:15:21]} 9. O-O {[%emt 0:05:58]} O-O {[%emt 1:16:46]} 10. h3 {[%emt 1:26:33]} c6 {[%emt 0:00:00]} 11. Bg5 {[%emt 0:00:00]} Qd6 {[%emt 0:00:00]} 12. Qf3 {[%emt 0:00:00]} Ba5 {[%emt 0:00:00]} 13. Bf4 {[%emt 0:00:00]} Qd7 {[%emt 0:00:00]} 14. Ne2 {[%emt 0:00:00]} Bc7 {[%emt 0:00:00]} 15. Bg5 {[%emt 0:00:00]} Qd6 {[%emt 0:00:00]} 16. Ng3 {[%emt 0:00:00]} h6 {[%emt 0:00:00]} 17. Bxf6 {[%emt 0:00:00]} Qxf6 {[%emt 0:00:00]} 18. Qxf6 {[%emt 0:00:00]} gxf6 {[%emt 0:00:00]} 19. Nh5 {[%emt 0:00:00]} Be5 {[%emt 0:00:00]} 20. c3 {[%emt 0:00:00]} f5 {[%emt 0:00:00]} 21. f4 {[%emt 0:00:00]} Bh8 {[%emt 0:00:00]} 22. Ng3 {[%emt 0:00:00]} Rb8 {[%emt 0:00:00]} 23. Rab1 {[%emt 0:00:00]} Rb6 {[%emt 0:00:00]} 24. Nxf5 {[%emt 0:00:00]} Bxf5 {[%emt 0:00:00]} 25. Bxf5 {[%emt 0:00:00]} Rfb8 {[%emt 0:00:00]} 26. Rf3 {[%emt 0:00:00]} c5 {[%emt 0:00:00]} 27. Rg3+ {[%emt 0:00:00]} Kf8 {[%emt 0:00:00]} 28. Re1 {[%emt 0:00:00]} Rxb2 {[%emt 0:00:00]} 29. Bh7 {[%emt 0:00:00]} Bg7 {[%emt 0:00:00]} 30. a4 {[%emt 0:00:00]} R2b3 {[%emt 0:00:00]} 31. Rge3 {[%emt 0:00:00]} Bxc3 {[%emt 0:00:00]} 32. Bc2 {[%emt 0:00:00]} Ra3 {[%emt 0:00:00]} 33. Rd3 {[%emt 0:00:00]} c4 {[%emt 0:00:00]} 34. Rf3 {[%emt 0:00:00]} Bxe1 {[%emt 0:00:00]} 35. Rxa3 {[%emt 0:00:00]} a5 {[%emt 0:00:00]} 36. Re3 {[%emt 0:00:00]} Bd2 {[%emt 0:00:00]} 37. Re5 {[%emt 0:00:00]} Rd8 {[%emt 0:00:00]} 38. g3 {[%emt 0:00:00]} Bc3 {[%emt 0:00:00]} 39. Re2 {[%emt 0:00:00]} d4 {[%emt 0:00:00]} 40. Bd1 {[%emt 0:01:16]} d3 {[%emt 0:00:00]} 41. Re4 {[%emt 0:00:06]} Bd4+ {[%emt 0:00:00]} 42. Kf1 {[%emt 0:02:30]} c3 {[%emt 0:00:00]} 43. Bb3 {[%emt 0:03:32]} c2 {[%emt 0:00:00]} 0-1

[Event "2nd ESNAICC Women 2024"]
[Site "Andorra la Vella"]
[Date "2024.06.26"]
[Round "5.5"]
[White "Henderson de La Fuente, Andrea"]
[Black "Berend, Elvira"]
[Result "1/2-1/2"]
[ECO "B90"]
[WhiteElo "1966"]
[BlackElo "2230"]
[Annotator "RC"]
[PlyCount "45"]
[EventDate "2024.06.24"]
[EventType "tourn"]
[EventCountry "AND"]
[SourceTitle "playchess.com"]
[Source "ChessBase"]
[SourceQuality "1"]
[TimeControl "40/5400+30:1800+30"]

1. e4 {[%emt 0:00:03]} c5 {[%emt 0:02:44]} 2. Nf3 {[%emt 0:00:22]} d6 {[%emt 0:00:11]} 3. d4 {[%emt 0:00:08]} cxd4 {[%emt 0:00:07]} 4. Nxd4 {[%emt 0:00:03]} Nf6 {[%emt 0:00:10]} 5. Nc3 {[%emt 0:00:06]} a6 {[%emt 0:00:08]} 6. Rg1 {[%emt 0:00:12]} g6 {[%emt 0:00:42]} 7. g4 {[%emt 0:01:17]} Bg7 {[%emt 0:00:05]} 8. Be3 {[%emt 0:04:58]} d5 {[%emt 0:14:35]} 9. e5 {[%emt 0:20:50]} Ne4 {[%emt 0:02:28]} 10. f4 {[%emt 0:04:54]} Nxc3 {[%emt 0:01:34]} 11. bxc3 {[%emt 0:00:01]} Qc7 {[%emt 0:03:14]} 12. Qd2 {[%emt 0:02:21]} e6 {[%emt 0:02:14]} 13. a4 {[%emt 0:04:10]} Nd7 {[%emt 0:01:15]} 14. a5 {[%emt 0:09:42]} Nc5 {[%emt 0:03:17]} 15. Bd3 {[%emt 0:03:15]} Bd7 {[%emt 0:00:34]} 16. Nb3 {[%emt 0:00:42]} Na4 {[%emt 0:03:46]} 17. Bd4 {[%emt 0:06:36]} Rc8 {[%emt 0:00:33]} 18. Rg3 {[%emt 0:01:15]} Bb5 {[%emt 0:06:45]} 19. Ra2 {[%emt 0:14:30]} Bd7 {[%emt 0:14:59]} 20. Be2 {[%emt 0:03:32]} Bb5 {[%emt 0:01:06]} 21. Qe3 {[%emt 0:02:06]} Bf8 {[%emt 0:02:54]} 22. Bxb5+ {[%emt 0:05:22]} axb5 {[%emt 0:00:07]} 23. Qd3 {[%emt 0:02:56]} 1/2-1/2

[Event "2nd ESNAICC Women 2024"]
[Site "Andorra la Vella"]
[Date "2024.06.26"]
[Round "6.2"]
[White "Markidou, Christianna"]
[Black "Henderson de La Fuente, Andrea"]
[Result "0-1"]
[ECO "B02"]
[WhiteElo "1676"]
[BlackElo "1966"]
[Annotator "RC"]
[PlyCount "150"]
[EventDate "2024.06.24"]
[EventType "tourn"]
[EventCountry "AND"]
[SourceTitle "playchess.com"]
[Source "ChessBase"]
[SourceQuality "1"]
[TimeControl "40/5400+30:1800+30"]

1. e4 {[%emt 0:01:21]} Nf6 {[%emt 0:00:08]} 2. e5 {[%emt 0:00:09]} Nd5 {[%emt 0:00:06]} 3. Bc4 {[%emt 0:00:07]} Nb6 {[%emt 0:00:09]} 4. Bb3 {[%emt 0:01:28]} d6 {[%emt 0:00:16]} 5. f4 {[%emt 0:00:34]} dxe5 {[%emt 0:03:06]} 6. fxe5 {[%emt 0:02:52]} a5 {[%emt 0:04:19]} 7. a4 {[%emt 0:00:43]} Nc6 {[%emt 0:00:31]} 8. Nf3 {[%emt 0:00:26]} Nd4 {[%emt 0:03:12]} 9. c3 {[%emt 0:06:00]} Nxb3 {[%emt 0:05:14]} 10. Qxb3 {[%emt 0:00:09]} Qd3 {[%emt 0:03:08]} 11. Qb5+ {[%emt 0:08:06]} Qxb5 {[%emt 0:00:07]} 12. axb5 {[%emt 0:00:05]} Bd7 {[%emt 0:00:28]} 13. Nd4 {[%emt 0:00:40]} Nc4 {[%emt 1:16:16]} 14. Nf3 {[%emt 0:14:40]} Bxb5 {[%emt 0:00:00]} 15. b3 {[%emt 0:00:16]} Nb6 {[%emt 0:00:00]} 16. c4 {[%emt 0:00:41]} Bc6 {[%emt 0:00:00]} 17. d4 {[%emt 0:00:47]} e6 {[%emt 0:00:00]} 18. Ba3 {[%emt 0:02:06]} a4 {[%emt 0:00:00]} 19. Bxf8 {[%emt 0:01:59]} Kxf8 {[%emt 0:00:00]} 20. O-O {[%emt 0:01:50]} Ke7 {[%emt 0:00:00]} 21. bxa4 {[%emt 0:06:00]} Nxc4 {[%emt 0:00:00]} 22. Nc3 {[%emt 0:00:29]} h6 {[%emt 0:00:00]} 23. Nb5 {[%emt 0:05:42]} Bxf3 {[%emt 0:00:00]} 24. Rxf3 {[%emt 0:09:35]} c6 {[%emt 0:00:00]} 25. Nd6 {[%emt 0:02:23]} Nxd6 {[%emt 0:00:00]} 26. exd6+ {[%emt 0:00:05]} Kxd6 {[%emt 0:00:00]} 27. Rxf7 {[%emt 0:00:11]} b5 {[%emt 0:07:00]} 28. Rxg7 {[%emt 0:02:40]} bxa4 {[%emt 0:00:00]} 29. Rg3 {[%emt 0:02:50]} Ra5 {[%emt 0:00:00]} 30. Raa3 {[%emt 0:00:49]} Rf8 {[%emt 0:00:00]} 31. Rh3 {[%emt 0:06:40]} Rb5 {[%emt 0:00:00]} 32. g3 {[%emt 0:06:08]} Rb4 {[%emt 0:00:00]} 33. Rxh6 {[%emt 0:04:58]} Rxd4 {[%emt 0:00:00]} 34. h4 {[%emt 0:01:02]} c5 {[%emt 0:00:00]} 35. Kg2 {[%emt 0:00:40]} Rb8 {[%emt 0:00:00]} 36. Re3 {[%emt 0:00:54]} Re8 {[%emt 0:00:00]} 37. Ra3 {[%emt 0:00:16]} Kd5 {[%emt 0:00:00]} 38. h5 {[%emt 0:00:47]} Rb8 {[%emt 0:01:59]} 39. Re3 {[%emt 0:05:38]} e5 {[%emt 0:00:26]} 40. Ra6 {[%emt 0:00:00]} Rh8 {[%emt 0:00:00]} 41. h6 {[%emt 0:03:43]} Rb4 {[%emt 0:06:19]} 42. Rd3+ {[%emt 0:06:11]} Kc4 {[%emt 0:03:39]} 43. Re3 {[%emt 0:01:57]} Kd4 {[%emt 0:00:40]} 44. Ra3 {[%emt 0:00:42]} c4 {[%emt 0:02:19]} 45. Rd6+ {[%emt 0:02:43]} Kc5 {[%emt 0:02:34]} 46. Rf6 {[%emt 0:00:39]} Rb2+ {[%emt 0:01:53]} 47. Kh3 {[%emt 0:08:06]} Kb4 {[%emt 0:00:17]} 48. Re3 {[%emt 0:00:33]} a3 {[%emt 0:02:16]} 49. Rxe5 {[%emt 0:02:03]} a2 {[%emt 0:01:32]} 50. Rb6+ {[%emt 0:00:48]} Kc3 {[%emt 0:00:22]} 51. Ra6 {[%emt 0:10:25]} Rxh6+ {[%emt 0:00:34]} 52. Rxh6 {[%emt 0:00:13]} a1=Q {[%emt 0:00:09]} 53. Rhe6 {[%emt 0:00:33]} Qh1+ {[%emt 0:01:47]} 54. Kg4 {[%emt 0:00:15]} Rd2 {[%emt 0:00:19]} 55. Re1 {[%emt 0:00:58]} Rd4+ {[%emt 0:00:36]} 56. Kg5 {[%emt 0:00:51]} Qd5+ {[%emt 0:01:53]} 57. R1e5 {[%emt 0:00:18]} Qd8+ {[%emt 0:00:26]} 58. Kf5 {[%emt 0:01:02]} Rd5 {[%emt 0:02:15]} 59. g4 {[%emt 0:00:29]} Qd7 {[%emt 0:03:13]} 60. g5 {[%emt 0:00:38]} Rxe5+ {[%emt 0:01:27]} 61. Kxe5 {[%emt 0:00:15]} Qg7+ {[%emt 0:00:33]} 62. Kf5 {[%emt 0:00:16]} Kc2 {[%emt 0:00:46]} 63. g6 {[%emt 0:00:22]} c3 {[%emt 0:00:16]} 64. Rf6 {[%emt 0:00:26]} Kd1 {[%emt 0:01:04]} 65. Rf7 {[%emt 0:00:22]} Qh8 {[%emt 0:00:36]} 66. g7 {[%emt 0:00:58]} Qh7+ {[%emt 0:00:40]} 67. Kf6 {[%emt 0:00:23]} c2 {[%emt 0:00:21]} 68. Rd7+ {[%emt 0:00:30]} Ke2 {[%emt 0:00:20]} 69. Re7+ {[%emt 0:00:43]} Kf2 {[%emt 0:02:12]} 70. Rc7 {[%emt 0:01:07]} Qh4+ {[%emt 0:00:13]} 71. Ke6 {[%emt 0:04:45]} Qe4+ {[%emt 0:00:49]} 72. Kd6 {[%emt 0:00:00]} Qf4+ {[%emt 0:00:16]} 73. Kd5 {[%emt 0:00:00]} Qxc7 {[%emt 0:01:44]} 74. g8=Q {[%emt 0:00:00]} c1=Q {[%emt 0:06:45]} 75. Qf7+ {[%emt 0:00:00]} Qxf7+ {[%emt 0:00:30]} 0-1

[Event "2nd ESNAICC Women 2024"]
[Site "Andorra la Vella"]
[Date "2024.06.26"]
[Round "6.3"]
[White "Nevska, Gerda"]
[Black "De la Riva Real, Ariadna"]
[Result "0-1"]
[ECO "B27"]
[WhiteElo "1872"]
[BlackElo "1774"]
[Annotator "NA RC"]
[PlyCount "154"]
[EventDate "2024.06.24"]
[EventType "tourn"]
[EventCountry "AND"]
[SourceTitle "playchess.com"]
[Source "ChessBase"]
[SourceQuality "1"]
[TimeControl "40/5400+30:1800+30"]

1. e4 {[%emt 0:00:17]} c5 {[%emt 0:00:10]} 2. Nf3 {[%emt 0:00:07]} g6 {[%emt 0:00:11]} 3. d4 {[%emt 0:00:10]} cxd4 {[%emt 0:00:11]} 4. Qxd4 {[%emt 0:03:53]} Nf6 {[%emt 0:00:16]} 5. e5 {[%emt 0:00:20]} Nc6 {[%emt 0:00:22]} 6. Qa4 {[%emt 0:04:02]} Nd5 {[%emt 0:03:41]} 7. c3 {[%emt 0:04:35]} Bg7 {[%emt 0:02:02]} 8. Qe4 {[%emt 0:07:14]} Nc7 {[%emt 0:05:59]} 9. Nbd2 {[%emt 0:11:41] B27: Sicilian: 2 Nf3, unusual Black 2nd moves.} O-O {[%emt 0:05:09]} 10. Bc4 {[%emt 0:04:45]} d5 {[%emt 0:06:25]} 11. exd6 {[%emt 0:00:09]} exd6 {[%emt 0:00:10]} 12. Qh4 {[%emt 0:06:32]} Re8+ {[%emt 0:01:04]} 13. Kf1 {[%emt 0:01:16]} Bf6 {[%emt 0:04:33]} 14. Qh6 {[%emt 0:04:16]} Bf5 {[%emt 0:15:01]} 15. Nb3 {[%emt 0:16:41]} Bg7 {[%emt 0:04:37]} 16. Qh4 {[%emt 0:06:20]} d5 {[%emt 0:07:26]} 17. Qxd8 {[%emt 0:02:55]} Raxd8 {[%emt 0:00:09]} 18. Be2 {[%emt 0:00:10]} Ne6 {[%emt 0:02:33]} 19. Be3 {[%emt 0:02:22]} d4 {[%emt 0:05:01]} 20. cxd4 {[%emt 0:02:16]} Nexd4 {[%emt 0:01:29]} 21. Nbxd4 {[%emt 0:02:17]} Nxd4 {[%emt 0:01:09]} 22. Bxd4 {[%emt 0:05:44]} Bxd4 {[%emt 0:00:26]} 23. Bb5 {[%emt 0:01:06]} Bxb2 {[%emt 0:05:29]} 24. Bxe8 {[%emt 0:00:09]} Bxa1 {[%emt 0:00:06]} 25. Ba4 {[%emt 0:00:05]} Bd3+ {[%emt 0:00:18]} 26. Kg1 {[%emt 0:00:59]} Bc4 {[%emt 0:07:55]} 27. h4 {[%emt 0:00:27]} Bxa2 {[%emt 0:00:36]} 28. h5 {[%emt 0:00:38]} Rc8 {[%emt 0:01:40]} 29. Kh2 {[%emt 0:00:52]} Bg7 {[%emt 0:00:28]} 30. Kg3 {[%emt 0:00:44]} Bd5 {[%emt 0:01:31]} 31. h6 {[%emt 0:01:45]} Bf8 {[%emt 0:00:24]} 32. Rd1 {[%emt 0:00:46]} Be6 {[%emt 0:03:37]} 33. Ng5 {[%emt 0:02:17]} Bf5 {[%emt 0:01:54]} 34. f3 {[%emt 0:03:31]} Bxh6 {[%emt 0:00:28]} 35. Ne4 {[%emt 0:00:36]} Bxe4 {[%emt 0:00:25]} 36. fxe4 {[%emt 0:00:15]} Rc4 {[%emt 0:00:44]} 37. Bb5 {[%emt 0:02:58]} Rxe4 {[%emt 0:00:33]} 38. Rd7 {[%emt 0:00:24]} a6 {[%emt 0:00:34]} 39. Bd3 {[%emt 0:01:06]} Re3+ {[%emt 0:00:27]} 40. Kf2 {[%emt 0:00:00]} b5 {[%emt 0:00:00]} 41. Rd5 {[%emt 0:06:57]} Kf8 {[%emt 0:01:46]} 42. g4 {[%emt 0:00:27]} Re6 {[%emt 0:05:23]} 43. g5 {[%emt 0:00:49]} Bg7 {[%emt 0:00:09]} 44. Rd8+ {[%emt 0:00:34]} Ke7 {[%emt 0:00:10]} 45. Rb8 {[%emt 0:00:02]} Rd6 {[%emt 0:00:35]} 46. Ke2 {[%emt 0:01:07]} h5 {[%emt 0:02:39]} 47. Rb7+ {[%emt 0:00:53]} Ke6 {[%emt 0:01:17]} 48. Bc2 {[%emt 0:00:16]} Bc3 {[%emt 0:01:17]} 49. Ke3 {[%emt 0:03:09]} f6 {[%emt 0:10:00]} 50. Bxg6 {[%emt 0:01:53]} fxg5 {[%emt 0:00:13]} 51. Bxh5 {[%emt 0:00:09]} b4 {[%emt 0:00:56]} 52. Be2 {[%emt 0:00:44]} a5 {[%emt 0:00:57]} 53. Bc4+ {[%emt 0:00:36]} Kf6 {[%emt 0:00:32]} 54. Bb3 {[%emt 0:00:56]} Ra6 {[%emt 0:02:29]} 55. Rh7 {[%emt 0:00:46]} Ra8 {[%emt 0:01:04]} 56. Rh6+ {[%emt 0:01:13]} Kg7 {[%emt 0:00:08]} 57. Rc6 {[%emt 0:01:00]} a4 {[%emt 0:00:16]} 58. Rc7+ {[%emt 0:00:21]} Kh6 {[%emt 0:00:19]} 59. Rc6+ {[%emt 0:00:09]} Kg7 {[%emt 0:00:36]} 60. Rc7+ {[%emt 0:00:39]} Kf6 {[%emt 0:00:46]} 61. Rc6+ {[%emt 0:00:51]} Ke7 {[%emt 0:00:14]} 62. Bd5 {[%emt 0:00:26]} Ra5 {[%emt 0:00:49]} 63. Bc4 {[%emt 0:00:50]} Kd7 {[%emt 0:00:31]} 64. Rh6 {[%emt 0:01:04]} b3 {[%emt 0:01:06]} 65. Rh2 {[%emt 0:01:34]} b2 {[%emt 0:01:54]} 66. Ba2 {[%emt 0:00:08]} Rb5 {[%emt 0:01:04]} 67. Rh1 {[%emt 0:02:20]} Re5+ {[%emt 0:01:29]} 68. Kd3 {[%emt 0:00:33]} Ba5 {[%emt 0:00:57]} 69. Rg1 {[%emt 0:01:41]} Bb6 {[%emt 0:01:35]} 70. Rg4 $19 {[%emt 0:00:53]} a3 {[%emt 0:02:10]} 71. Rb4 {[%emt 0:00:21]} Bc5 {[%emt 0:17:26]} 72. Rb8 {[%emt 0:03:37]} Re1 {[%emt 0:00:00]} 73. Kc2 {[%emt 0:03:14]} Bd6 {[%emt 0:00:00]} 74. Rb5 {[%emt 0:01:47]} g4 {[%emt 0:00:00]} 75. Rb7+ {[%emt 0:01:19]} Kc6 {[%emt 0:00:00]} 76. Rg7 {[%emt 0:00:34]} g3 {[%emt 0:00:00]} 77. Rg4 {[%emt 0:00:13]} Rc1+ {[%emt 0:00:00]} 0-1

[Event "2nd ESNAICC Women 2024"]
[Site "Andorra la Vella"]
[Date "2024.06.26"]
[Round "6.4"]
[White "Thornton, Filipina"]
[Black "Muratet Carmona, Julia"]
[Result "0-1"]
[ECO "D31"]
[WhiteElo "1787"]
[BlackElo "1834"]
[Annotator "NA RC"]
[PlyCount "93"]
[EventDate "2024.06.24"]
[EventType "tourn"]
[EventCountry "AND"]
[SourceTitle "playchess.com"]
[Source "ChessBase"]
[SourceQuality "1"]
[TimeControl "40/5400+30:1800+30"]

1. d4 {[%emt 0:00:23]} d5 {[%emt 0:00:11]} 2. c4 {[%emt 0:00:05]} e6 {[%emt 0:00:13]} 3. Nc3 {[%emt 0:00:10]} h6 {[%emt 0:00:19]} 4. e3 {[%emt 0:00:43]} Nf6 {[%emt 0:00:25]} 5. Bd3 {[%emt 0:01:47]} dxc4 {[%emt 0:01:21]} 6. Bxc4 {[%emt 0:00:09]} a6 {[%emt 0:00:14]} 7. Nge2 {[%emt 0:01:39]} b5 {[%emt 0:03:05]} 8. Bd3 {[%emt 0:01:25]} c5 {[%emt 0:03:40]} 9. Ne4 {[%emt 0:06:31]} cxd4 {[%emt 0:10:20]} 10. Nxd4 {[%emt 0:02:03]} Bb7 {[%emt 0:00:44]} 11. Nxf6+ {[%emt 0:03:44]} Qxf6 {[%emt 0:02:14]} 12. O-O {[%emt 0:02:04]} Bd6 {[%emt 0:04:58]} 13. Nxb5 {[%emt 0:13:01]} axb5 {[%emt 0:04:04]} 14. Bxb5+ {[%emt 0:00:58]} Ke7 {[%emt 0:00:25]} 15. Qe2 {[%emt 0:03:37]} Rd8 {[%emt 0:08:22]} 16. f4 {[%emt 0:02:30]} Na6 {[%emt 0:12:39]} 17. e4 {[%emt 0:05:59]} Qd4+ {[%emt 0:07:33]} 18. Be3 {[%emt 0:04:42]} Qxe4 {[%emt 0:01:42]} 19. Bd3 {[%emt 0:02:06]} Qxe3+ {[%emt 0:01:13]} 20. Qxe3 {[%emt 0:01:08]} Bc5 {[%emt 0:00:04]} 21. Qxc5+ {[%emt 0:01:01]} Nxc5 {[%emt 0:00:05]} 22. Bb5 {[%emt 0:45:45]} Rd2 {[%emt 0:01:18]} 23. Rf2 {[%emt 0:00:00]} Rxf2 {[%emt 0:09:32]} 24. Kxf2 {[%emt 0:00:00]} Bd5 {[%emt 0:01:29]} 25. a4 {[%emt 0:00:00]} Rb8 {[%emt 0:03:22]} 26. g3 {[%emt 0:00:00]} Rc8 {[%emt 0:02:40]} 27. b4 {[%emt 0:00:00]} Nb3 {[%emt 0:02:44]} 28. Rd1 {[%emt 0:00:00]} Rc2+ {[%emt 0:00:38]} 29. Ke3 {[%emt 0:00:00]} Rxh2 {[%emt 0:00:57]} 30. Be2 {[%emt 0:00:00]} Rg2 {[%emt 0:02:07]} 31. g4 {[%emt 0:00:00]} Rg3+ {[%emt 0:01:43]} 32. Kf2 {[%emt 0:00:00]} Rc3 {[%emt 0:00:36]} 33. b5 {[%emt 0:00:00]} Na5 {[%emt 0:01:21]} 34. b6 {[%emt 0:00:00]} Bb7 {[%emt 0:03:03]} 35. Bb5 {[%emt 0:00:00]} Rf3+ {[%emt 0:03:53]} 36. Ke2 {[%emt 0:00:00]} Rxf4 {[%emt 0:00:15]} 37. Rd7+ {[%emt 0:00:00]} Kf6 {[%emt 0:00:19]} 38. Rc7 {[%emt 0:00:00]} Rxg4 {[%emt 0:00:42]} 39. Be8 {[%emt 0:00:00]} g5 {[%emt 0:07:32]} 40. Rxf7+ {[%emt 0:00:00]} Ke5 {[%emt 0:00:00]} 41. Rc7 {[%emt 0:00:00]} Kd6 {[%emt 0:02:08]} 42. Rd7+ {[%emt 0:00:00]} Kc5 {[%emt 0:02:22]} 43. Re7 {[%emt 0:00:00]} Bd5 {[%emt 0:00:46]} 44. Rh7 {[%emt 0:03:00]} Rh4 {[%emt 0:00:29]} 45. Rd7 {[%emt 0:07:53]} Kxb6 {[%emt 0:02:08]} 46. Rd6+ {[%emt 0:00:32]} Kc5 {[%emt 0:00:36]} 47. Ra6 {[%emt 0:00:31]} 0-1

[Event "2nd ESNAICC Women 2024"]
[Site "Andorra la Vella"]
[Date "2024.06.26"]
[Round "6.5"]
[White "Zvereva, Marija"]
[Black "Ruddy, Rachel"]
[Result "1-0"]
[ECO "C70"]
[WhiteElo "2040"]
[BlackElo "1719"]
[Annotator "NA RC"]
[PlyCount "79"]
[EventDate "2024.06.24"]
[EventType "tourn"]
[EventCountry "AND"]
[SourceTitle "playchess.com"]
[Source "ChessBase"]
[SourceQuality "1"]
[TimeControl "40/5400+30:1800+30"]

1. e4 {[%emt 0:00:17]} e5 {[%emt 0:00:17]} 2. Nf3 {[%emt 0:00:08]} Nc6 {[%emt 0:00:13]} 3. Bb5 {[%emt 0:00:18]} a6 {[%emt 0:00:23]} 4. Ba4 {[%emt 0:00:10]} b5 {[%emt 0:00:32]} 5. Bb3 {[%emt 0:00:05]} Bb7 {[%emt 0:00:15]} 6. d3 {[%emt 0:03:50]} h6 {[%emt 0:00:44]} 7. O-O {[%emt 0:01:35]} Nf6 {[%emt 0:00:23]} 8. Nc3 {[%emt 0:01:45]} Bc5 {[%emt 0:03:59]} 9. Be3 {[%emt 0:01:28]} Ba7 {[%emt 0:00:50]} 10. a4 {[%emt 0:13:01]} Bxe3 {[%emt 0:04:25]} 11. fxe3 {[%emt 0:00:11]} b4 {[%emt 0:01:12]} 12. Nd5 {[%emt 0:00:53]} a5 {[%emt 0:00:41]} 13. Nxf6+ {[%emt 0:03:20]} gxf6 {[%emt 0:01:06]} 14. Nh4 {[%emt 0:00:13]} Qe7 {[%emt 0:01:20]} 15. Nf5 {[%emt 0:01:01]} Qf8 {[%emt 0:00:22]} 16. Qh5 {[%emt 0:03:10]} Rh7 {[%emt 0:00:56]} 17. Ng3 {[%emt 0:01:35]} Qg7 {[%emt 0:01:09]} 18. Qf5 {[%emt 0:02:24]} O-O-O {[%emt 0:02:16]} 19. Qxf6 {[%emt 0:03:30]} Rf8 {[%emt 0:05:26]} 20. Qxg7 {[%emt 0:01:03]} Rxg7 {[%emt 0:00:09]} 21. Rf6 {[%emt 0:00:16]} Rh7 {[%emt 0:00:54]} 22. Raf1 {[%emt 0:00:33]} Nd8 {[%emt 0:00:16]} 23. Nf5 {[%emt 0:00:57]} h5 {[%emt 0:00:34]} 24. Ne7+ {[%emt 0:00:16]} Kb8 {[%emt 0:00:28]} 25. Ng6 {[%emt 0:00:14]} Rg8 {[%emt 0:01:08]} 26. Nxe5 {[%emt 0:00:11]} Rhg7 {[%emt 0:01:01]} 27. R1f2 {[%emt 0:00:31]} Bc8 {[%emt 0:02:48]} 28. Bxf7 {[%emt 0:02:25]} Nxf7 {[%emt 0:00:25]} 29. Rxf7 {[%emt 0:00:10]} Rxf7 {[%emt 0:01:54]} 30. Rxf7 {[%emt 0:00:07]} d6 {[%emt 0:00:12]} 31. Nc6+ {[%emt 0:00:24]} Kb7 {[%emt 0:00:23]} 32. Nxa5+ {[%emt 0:03:26]} Kb6 {[%emt 0:00:09]} 33. Nc4+ {[%emt 0:00:15]} Kc6 {[%emt 0:00:09]} 34. Kf2 {[%emt 0:00:47]} Be6 {[%emt 0:00:28]} 35. Rf6 {[%emt 0:00:39]} Bxc4 {[%emt 0:00:43]} 36. dxc4 {[%emt 0:00:04]} Rg4 {[%emt 0:00:08]} 37. Kf3 {[%emt 0:00:15]} Rg8 {[%emt 0:00:53]} 38. b3 {[%emt 0:00:18]} Rg5 {[%emt 0:00:40]} 39. Rf5 {[%emt 0:00:11]} Rg8 {[%emt 0:00:24]} 40. Rxh5 {[%emt 0:00:00]} 1-0